fUSD/lending_fUSD_20260605
["ID","MTS","AMOUNT","RATE_DAILY","PERIOD"]
[424156980,1780617039000,-151.0,0.00019545,2]
[424156984,1780617039000,-502.61,0.000196,2]
[424156976,1780617039000,-151.0,0.00019545,2]
[424156973,1780617039000,-151.0,0.00019545,2]
[424156968,1780617039000,-500.0,0.00019545,2]
[424156974,1780617039000,-500.0,0.00019545,2]
[424156979,1780617039000,-151.0,0.00019545,2]
[424156978,1780617039000,-151.0,0.00019545,2]
[424156985,1780617039000,-272.796375,0.000196,2]
[424156998,1780617039000,-581.0,0.0002,2]
[424156986,1780617039000,-4328.48051187,0.0002,2]
[424156990,1780617039000,-1197.057938,0.0002,2]
[424156987,1780617039000,-841.3188791,0.0002,2]
[424156989,1780617039000,-263.91170216,0.0002,2]
[424156991,1780617039000,-706.0,0.0002,2]
[424156993,1780617039000,-461.0,0.0002,2]
[424156992,1780617039000,-1053.0,0.0002,2]
[424156995,1780617039000,-2456.0,0.0002,2]
[424156994,1780617039000,-2400.0,0.0002,2]
[424156996,1780617039000,-260.25,0.0002,8]
[424157008,1780617039000,-176.31671627,0.0002,2]
[424157001,1780617039000,-400.0,0.0002,2]
[424156970,1780617039000,-151.0,0.00019545,2]
[424156988,1780617039000,-592.88734821,0.0002,2]
[424156969,1780617039000,-151.0,0.00019545,2]
[424156940,1780617039000,-2080.17592889,0.00019543,2]
[424156972,1780617039000,-151.0,0.00019545,2]
[424157000,1780617039000,-705.0,0.0002,2]
[424156948,1780617039000,-500.0,0.00019545,2]
[424156947,1780617039000,-151.0,0.00019545,2]
[424156946,1780617039000,-151.0,0.00019545,2]
[424156941,1780617039000,-200.0,0.00019545,2]
[424156942,1780617039000,-151.0,0.00019545,2]
[424156943,1780617039000,-151.0,0.00019545,2]
[424156944,1780617039000,-151.0,0.00019545,2]
[424156945,1780617039000,-151.0,0.00019545,2]
[424156949,1780617039000,-151.0,0.00019545,2]
[424156952,1780617039000,-500.0,0.00019545,2]
[424156951,1780617039000,-151.0,0.00019545,2]
[424156950,1780617039000,-500.0,0.00019545,2]
[424156967,1780617039000,-151.0,0.00019545,2]
[424156953,1780617039000,-151.0,0.00019545,2]
[424156955,1780617039000,-151.0,0.00019545,2]
[424156956,1780617039000,-500.0,0.00019545,2]
[424156957,1780617039000,-151.0,0.00019545,2]
[424156958,1780617039000,-151.0,0.00019545,2]
[424156959,1780617039000,-500.0,0.00019545,2]
[424156960,1780617039000,-151.0,0.00019545,2]
[424156963,1780617039000,-151.0,0.00019545,2]
[424156961,1780617039000,-151.0,0.00019545,2]
[424156966,1780617039000,-151.0,0.00019545,2]
[424156965,1780617039000,-500.0,0.00019545,2]
[424156964,1780617039000,-151.0,0.00019545,2]
[424156962,1780617039000,-500.0,0.00019545,2]
[424156971,1780617039000,-500.0,0.00019545,2]
[424156954,1780617039000,-500.0,0.00019545,2]
[424157005,1780617039000,-1763.0,0.0002,2]
[424156981,1780617039000,-151.0,0.00019545,2]
[424157004,1780617039000,-976.0,0.0002,2]
[424157037,1780617039000,-1053.0,0.00021,2]
[424157036,1780617039000,-706.0,0.00021,2]
[424157038,1780617039000,-461.0,0.00021,2]
[424157046,1780617039000,-3432.0,0.00021,2]
[424157039,1780617039000,-2400.0,0.00021,2]
[424157048,1780617039000,-1763.0,0.00021,2]
[424157047,1780617039000,-976.0,0.00021,2]
[424157044,1780617039000,-705.0,0.00021,2]
[424157043,1780617039000,-3500.0,0.00021,2]
[424157040,1780617039000,-2456.0,0.00021,2]
[424157045,1780617039000,-335.0,0.00021,2]
[424157042,1780617039000,-581.0,0.00021,2]
[424157041,1780617039000,-894.0,0.00021,2]
[424157024,1780617039000,-150.0,0.0002058,2]
[424157050,1780617039000,-3015.0,0.00021,2]
[424157060,1780617039000,-156.59710035,0.00021415,2]
[424157052,1780617039000,-2319.72410669,0.00021187,2]
[424157061,1780617039000,-815.0,0.00021506,2]
[424157062,1780617039000,-1340.31,0.000216,2]
[424157049,1780617039000,-514.0,0.00021,2]
[424157051,1780617039000,-151.0,0.00021187,2]
[424157054,1780617039000,-1301.75,0.00021205,2]
[424157057,1780617039000,-19015.21,0.00021273,2]
[424157059,1780617039000,-4774.37,0.0002137,2]
[424157056,1780617039000,-670.19,0.00021273,2]
[424157058,1780617039000,-28505.63,0.00021273,2]
[424157055,1780617039000,-4038.33,0.00021273,2]
[424157063,1780617039000,-169.57,0.00021667,2]
[424157053,1780617039000,-200.0,0.00021189,2]
[424157026,1780617039000,-150.0,0.0002058,2]
[424156999,1780617039000,-3500.0,0.0002,2]
[424157028,1780617039000,-150.0,0.0002058,2]
[424157022,1780617039000,-21868.7,0.00020548,2]
[424156997,1780617039000,-894.0,0.0002,2]
[424157002,1780617039000,-335.0,0.0002,2]
[424157003,1780617039000,-3432.0,0.0002,2]
[424157007,1780617039000,-176.31671627,0.0002,2]
[424157006,1780617039000,-514.0,0.0002,2]
[424157009,1780617039000,-176.31671627,0.0002,2]
[424157010,1780617039000,-176.31671627,0.0002,2]
[424157012,1780617039000,-14458.94,0.0002,2]
[424157020,1780617039000,-233.94091002,0.00020493,2]
[424157011,1780617039000,-176.31671628,0.0002,2]
[424157021,1780617039000,-7600.79161202,0.00020497,2]
[424157013,1780617039000,-12649.0,0.00020041,2]
[424157016,1780617039000,-200.0,0.00020093,2]
[424157019,1780617039000,-4221.2,0.00020381,2]
[424157064,1780617039000,-169.57,0.00021667,2]
[424157017,1780617039000,-1254.0,0.00020136,2]
[424157032,1780617039000,-200.0,0.00020641,2]
[424157031,1780617039000,-2236.95670847,0.00020639,2]
[424157030,1780617039000,-151.0,0.00020639,2]
[424157027,1780617039000,-150.0,0.0002058,2]
[424157034,1780617039000,-1197.057938,0.00021,2]
[424157025,1780617039000,-150.0,0.0002058,2]
[424157029,1780617039000,-150.0,0.0002058,2]
[424157023,1780617039000,-150.0,0.0002058,2]
[424157018,1780617039000,-500.0,0.00020319,2]
[424157014,1780617039000,-151.0,0.00020091,2]
[424157015,1780617039000,-2157.14243826,0.00020091,2]
[424157033,1780617039000,-1254.0,0.00020821,2]
[424157100,1780617040000,-7295.47741862,0.000224,2]
[424157107,1780617040000,-234.9888517,0.00022407,2]
[424157104,1780617040000,-782.59573155,0.000224,2]
[424157105,1780617040000,-234.98885172,0.00022407,2]
[424157103,1780617040000,-502.61,0.000224,7]
[424157094,1780617040000,-2494.55939288,0.00022283,2]
[424157102,1780617040000,-2112.48062307,0.000224,2]
[424157111,1780617040000,-158.38,0.00022426,2]
[424157101,1780617040000,-1962.20277148,0.000224,2]
[424157098,1780617040000,-783.10860739,0.000224,2]
[424157109,1780617040000,-158.38,0.00022426,2]
[424157112,1780617040000,-158.38,0.00022426,2]
[424157110,1780617040000,-158.38,0.00022426,2]
[424157121,1780617040000,-150.0,0.00022512,2]
[424157108,1780617040000,-158.38,0.00022426,2]
[424157113,1780617040000,-158.38,0.00022426,2]
[424157117,1780617040000,-1988.11,0.00022466,2]
[424157115,1780617040000,-1031.91,0.00022466,2]
[424157118,1780617040000,-248.0,0.00022481,2]
[424157124,1780617040000,-150.0,0.00022512,2]
[424157114,1780617040000,-158.38,0.00022426,2]
[424157116,1780617040000,-2156.0,0.00022466,2]
[424157120,1780617040000,-150.0,0.00022512,2]
[424157122,1780617040000,-150.0,0.00022512,2]
[424157123,1780617040000,-150.0,0.00022512,2]
[424157119,1780617040000,-150.0,0.00022512,2]
[424157095,1780617040000,-200.0,0.00022285,2]
[424157106,1780617040000,-234.9888517,0.00022407,2]
[424157097,1780617040000,-1006.83748556,0.000224,2]
[424157078,1780617040000,-1053.0,0.00022,2]
[424157092,1780617040000,-2087.47,0.00022,2]
[424157126,1780617040000,-150.0,0.00022512,2]
[424157066,1780617040000,-500.0,0.00021704,2]
[424157065,1780617040000,-169.57,0.00021667,2]
[424157067,1780617040000,-14458.94,0.00021705,2]
[424157072,1780617040000,-1007.2,0.00021918,2]
[424157068,1780617040000,-284.99349563,0.00021735,2]
[424157073,1780617040000,-5000.0,0.00021918,2]
[424157071,1780617040000,-7600.79161202,0.00021798,2]
[424157074,1780617040000,-200.0,0.00021918,2]
[424157070,1780617040000,-200.0,0.00021737,2]
[424157076,1780617040000,-1197.057938,0.00022,2]
[424157075,1780617040000,-400.0,0.00022,10]
[424157083,1780617040000,-581.0,0.00022,2]
[424157096,1780617040000,-4221.2,0.00022353,2]
[424157079,1780617040000,-461.0,0.00022,2]
[424157077,1780617040000,-706.0,0.00022,2]
[424157085,1780617040000,-705.0,0.00022,2]
[424157081,1780617040000,-2456.0,0.00022,2]
[424157080,1780617040000,-2400.0,0.00022,2]
[424157082,1780617040000,-894.0,0.00022,2]
[424157084,1780617040000,-3500.0,0.00022,2]
[424157087,1780617040000,-335.0,0.00022,2]
[424157090,1780617040000,-1763.0,0.00022,2]
[424157089,1780617040000,-976.0,0.00022,2]
[424157091,1780617040000,-514.0,0.00022,2]
[424157088,1780617040000,-3432.0,0.00022,2]
[424157093,1780617040000,-17709.0,0.00022045,2]
[424157099,1780617040000,-10195.26301136,0.000224,2]
[424157086,1780617040000,-450.0,0.00022,2]
[424157136,1780617040000,-1006.83748556,0.000226,2]
[424157069,1780617040000,-2405.55389863,0.00021735,2]
[424157125,1780617040000,-150.0,0.00022512,2]
[424157153,1780617040000,-211.43671141,0.00022689,4]
[424157157,1780617040000,-211.43671141,0.0002274,4]
[424157164,1780617040000,-1006.83748556,0.000228,2]
[424157163,1780617040000,-152.0,0.00022793,7]
[424157165,1780617040000,-783.10860739,0.000228,2]
[424157166,1780617040000,-10195.26301136,0.000228,2]
[424157174,1780617040000,-200.0,0.00022833,2]
[424157169,1780617040000,-1962.20277148,0.000228,2]
[424157172,1780617040000,-211.43671141,0.00022816,4]
[424157170,1780617040000,-2112.48062307,0.000228,2]
[424157168,1780617040000,-7295.47741862,0.000228,2]
[424157173,1780617040000,-2586.85809042,0.00022831,2]
[424157175,1780617040000,-150.0,0.00022839,4]
[424157171,1780617040000,-782.59573155,0.000228,2]
[424157176,1780617040000,-211.43671141,0.00022841,4]
[424157178,1780617040000,-150.0,0.00022846,4]
[424157188,1780617040000,-211.43671141,0.00022992,4]
[424157189,1780617040000,-1197.057938,0.00023,2]
[424157177,1780617040000,-150.0,0.00022846,4]
[424157179,1780617040000,-211.43671141,0.00022866,4]
[424157180,1780617040000,-211.43671141,0.00022891,4]
[424157181,1780617040000,-150.0,0.00022893,4]
[424157184,1780617040000,-150.0,0.00022929,4]
[424157185,1780617040000,-211.43671141,0.00022942,4]
[424157186,1780617040000,-150.0,0.00022947,4]
[424157182,1780617040000,-211.43671141,0.00022917,4]
[424157187,1780617040000,-211.43671141,0.00022967,4]
[424157160,1780617040000,-211.43671141,0.00022765,4]
[424157159,1780617040000,-150.0,0.00022762,4]
[424157183,1780617040000,-150.0,0.00022929,4]
[424157155,1780617040000,-211.43671141,0.00022714,4]
[424157152,1780617040000,-150.0,0.00022679,4]
[424157127,1780617040000,-211.43671141,0.00022512,4]
[424157135,1780617040000,-150.0,0.00022596,4]
[424157129,1780617040000,-1124.0,0.00022548,2]
[424157132,1780617040000,-150.0,0.00022567,4]
[424157134,1780617040000,-150.0,0.00022596,4]
[424157128,1780617040000,-211.43671141,0.00022538,4]
[424157133,1780617040000,-211.43671141,0.00022588,4]
[424157130,1780617040000,-1206.0,0.00022561,2]
[424157131,1780617040000,-211.43671141,0.00022563,4]
[424157138,1780617040000,-10195.26301136,0.000226,2]
[424157141,1780617040000,-2112.48062307,0.000226,2]
[424157140,1780617040000,-1962.20277148,0.000226,2]
[424157139,1780617040000,-7295.47741862,0.000226,2]
[424157137,1780617040000,-783.10860739,0.000226,2]
[424157148,1780617040000,-211.43671141,0.00022664,4]
[424157142,1780617040000,-782.59573155,0.000226,2]
[424157158,1780617040000,-150.0,0.00022762,4]
[424157154,1780617040000,-4038.33,0.00022691,2]
[424157150,1780617040000,-150.0,0.00022675,4]
[424157162,1780617040000,-211.43671141,0.0002279,4]
[424157161,1780617040000,-150.0,0.00022784,4]
[424157156,1780617040000,-150.0,0.0002273,4]
[424157147,1780617040000,-243.0,0.00022656,2]
[424157151,1780617040000,-150.0,0.00022679,4]
[424157145,1780617040000,-150.0,0.00022621,4]
[424157146,1780617040000,-211.43671141,0.00022639,4]
[424157144,1780617040000,-211.43671141,0.00022613,4]
[424157149,1780617040000,-200.0,0.00022671,2]
[424157143,1780617040000,-168.16,0.00022603,2]
[424157221,1780617041000,-2112.48062307,0.000231,2]
[424157224,1780617041000,-211.43671141,0.00023119,4]
[424157226,1780617041000,-211.43671141,0.00023144,4]
[424157231,1780617041000,-218.55847566,0.00023169,2]
[424157223,1780617041000,-150.0,0.0002311,4]
[424157225,1780617041000,-501.09197696,0.00023128,2]
[424157227,1780617041000,-150.0,0.00023165,4]
[424157228,1780617041000,-168.43380126,0.00023168,2]
[424157230,1780617041000,-336.86760253,0.00023169,2]
[424157229,1780617041000,-171.18672706,0.00023169,2]
[424157234,1780617041000,-150.0,0.00023179,4]
[424157235,1780617041000,-211.43671141,0.00023195,4]
[424157237,1780617041000,-211.43671141,0.0002322,4]
[424157243,1780617041000,-211.43671141,0.00023296,4]
[424157233,1780617041000,-150.0,0.00023179,4]
[424157236,1780617041000,-150.0,0.00023219,4]
[424157238,1780617041000,-211.43671141,0.00023245,4]
[424157222,1780617041000,-782.59573155,0.000231,2]
[424157232,1780617041000,-211.43671141,0.00023169,4]
[424157239,1780617041000,-150.0,0.00023263,4]
[424157241,1780617041000,-211.43671141,0.0002327,4]
[424157240,1780617041000,-150.0,0.00023263,4]
[424157246,1780617041000,-10195.26301136,0.000233,2]
[424157244,1780617041000,-1006.83748556,0.000233,2]
[424157247,1780617041000,-7295.47741862,0.000233,2]
[424157248,1780617041000,-1962.20277148,0.000233,2]
[424157242,1780617041000,-150.0,0.00023274,4]
[424157220,1780617041000,-1962.20277148,0.000231,2]
[424157209,1780617041000,-211.43671141,0.00023043,4]
[424157219,1780617041000,-7295.47741862,0.000231,2]
[424157245,1780617041000,-783.10860739,0.000233,2]
[424157190,1780617041000,-706.0,0.00023,2]
[424157192,1780617041000,-461.0,0.00023,2]
[424157193,1780617041000,-2400.0,0.00023,2]
[424157194,1780617041000,-2456.0,0.00023,2]
[424157202,1780617041000,-976.0,0.00023,2]
[424157200,1780617041000,-335.0,0.00023,2]
[424157197,1780617041000,-581.0,0.00023,2]
[424157203,1780617041000,-1763.0,0.00023,2]
[424157191,1780617041000,-1053.0,0.00023,2]
[424157201,1780617041000,-3432.0,0.00023,2]
[424157199,1780617041000,-705.0,0.00023,2]
[424157218,1780617041000,-10195.26301136,0.000231,2]
[424157198,1780617041000,-3500.0,0.00023,2]
[424157205,1780617041000,-150.0,0.00023002,4]
[424157215,1780617041000,-7600.79161202,0.00023099,2]
[424157214,1780617041000,-150.0,0.00023096,4]
[424157216,1780617041000,-1006.83748556,0.000231,2]
[424157204,1780617041000,-514.0,0.00023,2]
[424157206,1780617041000,-150.0,0.00023013,4]
[424157207,1780617041000,-150.0,0.00023013,4]
[424157208,1780617041000,-211.43671141,0.00023018,4]
[424157210,1780617041000,-150.0,0.00023056,4]
[424157211,1780617041000,-211.43671141,0.00023068,4]
[424157212,1780617041000,-211.43671141,0.00023093,4]
[424157217,1780617041000,-783.10860739,0.000231,2]
[424157196,1780617041000,-894.0,0.00023,2]
[424157213,1780617041000,-150.0,0.00023096,4]
[424157256,1780617041000,-211.43671141,0.00023346,4]
[424157252,1780617041000,-150.0,0.00023328,4]
[424157283,1780617041000,-211.43671141,0.00023523,4]
[424157285,1780617041000,-211.43671141,0.00023548,4]
[424157288,1780617041000,-150.0,0.00023596,4]
[424157287,1780617041000,-150.0,0.00023596,4]
[424157286,1780617041000,-211.43671141,0.00023574,4]
[424157289,1780617041000,-211.43671141,0.00023599,4]
[424157291,1780617041000,-500.0,0.00023616,2]
[424157290,1780617041000,-150.0,0.000236,4]
[424157284,1780617041000,-150.0,0.00023546,4]
[424157293,1780617041000,-500.0,0.00023644,2]
[424157292,1780617041000,-211.43671141,0.00023624,4]
[424157296,1780617041000,-211.43671141,0.00023675,4]
[424157279,1780617041000,-2112.48062307,0.000235,2]
[424157295,1780617041000,-150.0,0.00023654,4]
[424157308,1780617041000,-150.0,0.00023763,4]
[424157297,1780617041000,-150.0,0.0002368,4]
[424157299,1780617041000,-200.07353925,0.00023699,2]
[424157300,1780617041000,-211.43671141,0.000237,4]
[424157301,1780617041000,-671.576668,0.00023703,2]
[424157307,1780617041000,-150.0,0.00023763,4]
[424157306,1780617041000,-211.43671141,0.0002375,4]
[424157304,1780617041000,-336.86760253,0.00023727,7]
[424157302,1780617041000,-150.0,0.00023709,4]
[424157303,1780617041000,-211.43671141,0.00023725,4]
[424157305,1780617041000,-1124.0,0.00023735,2]
[424157249,1780617041000,-2112.48062307,0.000233,2]
[424157298,1780617041000,-150.0,0.0002368,4]
[424157270,1780617041000,-150.0,0.00023437,4]
[424157294,1780617041000,-211.43671141,0.00023649,4]
[424157274,1780617041000,-211.43671141,0.00023472,4]
[424157280,1780617041000,-214.87,0.00023502,2]
[424157250,1780617041000,-782.59573155,0.000233,2]
[424157253,1780617041000,-150.0,0.00023346,4]
[424157255,1780617041000,-150.0,0.00023346,4]
[424157254,1780617041000,-150.0,0.00023346,4]
[424157258,1780617041000,-2682.57183977,0.00023379,2]
[424157268,1780617041000,-12822.87,0.0002343,2]
[424157269,1780617041000,-297.69,0.0002343,2]
[424157259,1780617041000,-200.0,0.00023381,2]
[424157257,1780617041000,-211.43671141,0.00023371,4]
[424157265,1780617041000,-150.0,0.00023429,4]
[424157263,1780617041000,-14458.94,0.0002341,7]
[424157267,1780617041000,-6029.87,0.0002343,2]
[424157261,1780617041000,-294.85629023,0.00023396,2]
[424157251,1780617041000,-211.43671141,0.00023321,4]
[424157273,1780617041000,-336.86760253,0.00023448,7]
[424157260,1780617041000,-150.0,0.00023382,4]
[424157276,1780617041000,-211.43671141,0.00023498,4]
[424157277,1780617041000,-10195.26301136,0.000235,2]
[424157281,1780617041000,-150.0,0.00023513,4]
[424157271,1780617041000,-200.0,0.00023446,2]
[424157278,1780617041000,-7295.47741862,0.000235,2]
[424157272,1780617041000,-211.43671141,0.00023447,4]
[424157275,1780617041000,-150.0,0.00023491,4]
[424157264,1780617041000,-211.43671141,0.00023422,4]
[424157266,1780617041000,-150.0,0.00023429,4]
[424157262,1780617041000,-211.43671141,0.00023397,4]
[424157282,1780617041000,-150.0,0.00023513,4]
[424157347,1780617042000,-2456.0,0.00024,2]
[424157350,1780617042000,-3500.0,0.00024,2]
[424157348,1780617042000,-894.0,0.00024,2]
[424157346,1780617042000,-2400.0,0.00024,2]
[424157340,1780617042000,-502.61,0.00024,7]
[424157343,1780617042000,-258.15,0.00024,14]
[424157337,1780617042000,-10195.26301136,0.00024,2]
[424157345,1780617042000,-461.0,0.00024,2]
[424157344,1780617042000,-1053.0,0.00024,2]
[424157338,1780617042000,-7295.47741862,0.00024,2]
[424157356,1780617042000,-1763.0,0.00024,2]
[424157341,1780617042000,-1197.057938,0.00024,2]
[424157358,1780617042000,-211.43671141,0.00024003,4]
[424157354,1780617042000,-3432.0,0.00024,2]
[424157349,1780617042000,-581.0,0.00024,2]
[424157352,1780617042000,-500.0,0.00024,2]
[424157357,1780617042000,-514.0,0.00024,2]
[424157353,1780617042000,-335.0,0.00024,2]
[424157355,1780617042000,-976.0,0.00024,2]
[424157359,1780617042000,-336.86760253,0.00024005,14]
[424157360,1780617042000,-150.0,0.00024013,4]
[424157361,1780617042000,-150.0,0.00024013,4]
[424157362,1780617042000,-211.43671141,0.00024028,4]
[424157370,1780617042000,-211.43671141,0.00024104,4]
[424157363,1780617042000,-150.0,0.00024035,4]
[424157371,1780617042000,-211.43671141,0.00024129,4]
[424157351,1780617042000,-705.0,0.00024,2]
[424157339,1780617042000,-2112.48062307,0.00024,2]
[424157372,1780617042000,-150.0,0.00024144,4]
[424157336,1780617042000,-277.75388502,0.00023999,2]
[424157309,1780617042000,-150.0,0.00023763,4]
[424157310,1780617042000,-150.0,0.00023763,4]
[424157312,1780617042000,-10195.26301136,0.000238,2]
[424157321,1780617042000,-150.0,0.00023872,4]
[424157314,1780617042000,-2112.48062307,0.000238,2]
[424157313,1780617042000,-7295.47741862,0.000238,2]
[424157315,1780617042000,-211.43671141,0.00023801,4]
[424157311,1780617042000,-211.43671141,0.00023776,4]
[424157319,1780617042000,-150.0,0.00023846,4]
[424157317,1780617042000,-211.43671141,0.00023826,4]
[424157316,1780617042000,-150.0,0.00023817,4]
[424157320,1780617042000,-211.43671141,0.00023851,4]
[424157318,1780617042000,-150.0,0.00023846,4]
[424157323,1780617042000,-208.62068482,0.000239,2]
[424157334,1780617042000,-150.0,0.00023999,2]
[424157333,1780617042000,-150.0,0.00023981,4]
[424157335,1780617042000,-150.0,0.00023999,2]
[424157322,1780617042000,-211.43671141,0.00023877,4]
[424157324,1780617042000,-211.43671141,0.00023902,4]
[424157331,1780617042000,-211.43671141,0.00023953,4]
[424157325,1780617042000,-150.0,0.00023926,4]
[424157326,1780617042000,-2781.82699784,0.00023927,2]
[424157327,1780617042000,-211.43671141,0.00023927,4]
[424157330,1780617042000,-150.0,0.0002393,4]
[424157329,1780617042000,-150.0,0.0002393,4]
[424157328,1780617042000,-200.0,0.00023929,2]
[424157332,1780617042000,-211.43671141,0.00023978,4]
[424157342,1780617042000,-706.0,0.00024,2]
[424157369,1780617042000,-500.0,0.00024099,2]
[424157373,1780617042000,-171.18672706,0.00024145,14]
[424157436,1780617042000,-150.0,0.00024597,4]
[424157404,1780617042000,-150.0,0.00024361,4]
[424157415,1780617042000,-2884.75459676,0.00024475,2]
[424157414,1780617042000,-150.0,0.0002447,4]
[424157405,1780617042000,-211.43671141,0.00024382,4]
[424157403,1780617042000,-211.43671141,0.00024357,4]
[424157406,1780617042000,-233.94091002,0.00024394,2]
[424157407,1780617042000,-7600.79161202,0.000244,2]
[424157416,1780617042000,-200.0,0.00024477,2]
[424157408,1780617042000,-211.43671141,0.00024407,4]
[424157413,1780617042000,-211.43671141,0.00024458,4]
[424157411,1780617042000,-150.0,0.0002443,4]
[424157410,1780617042000,-150.0,0.0002443,4]
[424157412,1780617042000,-211.43671141,0.00024433,4]
[424157419,1780617042000,-7295.47741862,0.000245,2]
[424157417,1780617042000,-211.43671141,0.00024483,4]
[424157425,1780617042000,-150.0,0.00024524,4]
[424157422,1780617042000,-150.0,0.00024513,4]
[424157423,1780617042000,-150.0,0.00024513,4]
[424157420,1780617042000,-2112.48062307,0.000245,2]
[424157421,1780617042000,-211.43671141,0.00024508,4]
[424157427,1780617042000,-211.43671141,0.00024534,4]
[424157429,1780617042000,-211.43671141,0.00024559,4]
[424157418,1780617042000,-10195.26301136,0.000245,2]
[424157433,1780617042000,-150.0,0.00024579,4]
[424157431,1780617042000,-336.86760253,0.00024563,60]
[424157364,1780617042000,-211.43671141,0.00024054,4]
[424157435,1780617042000,-211.43671141,0.00024584,4]
[424157395,1780617042000,-211.43671141,0.00024281,4]
[424157398,1780617042000,-150.0,0.00024307,4]
[424157409,1780617042000,-150.0,0.00024416,4]
[424157394,1780617042000,-150.0,0.00024263,4]
[424157367,1780617042000,-150.0,0.00024097,4]
[424157396,1780617042000,-336.86760253,0.00024284,30]
[424157368,1780617042000,-150.0,0.00024097,4]
[424157365,1780617042000,-211.43671141,0.00024079,4]
[424157374,1780617042000,-218.55847566,0.00024145,14]
[424157376,1780617042000,-150.0,0.0002418,4]
[424157386,1780617042000,-186.04151345,0.00024217,2]
[424157387,1780617042000,-200.0,0.00024221,2]
[424157378,1780617042000,-150.0,0.0002418,4]
[424157377,1780617042000,-150.0,0.0002418,4]
[424157375,1780617042000,-211.43671141,0.00024155,4]
[424157381,1780617042000,-10000.0,0.000242,2]
[424157380,1780617042000,-150.0,0.00024198,4]
[424157379,1780617042000,-211.43671141,0.0002418,4]
[424157385,1780617042000,-211.43671141,0.00024205,4]
[424157402,1780617042000,-150.0,0.00024347,4]
[424157384,1780617042000,-2112.48062307,0.000242,2]
[424157390,1780617042000,-11976.0,0.00024249,2]
[424157397,1780617042000,-211.43671141,0.00024306,4]
[424157393,1780617042000,-150.0,0.00024263,4]
[424157392,1780617042000,-211.43671141,0.00024256,4]
[424157401,1780617042000,-150.0,0.00024347,4]
[424157366,1780617042000,-150.0,0.00024089,4]
[424157391,1780617042000,-150.0,0.00024252,4]
[424157399,1780617042000,-4221.2,0.00024324,2]
[424157389,1780617042000,-211.43671141,0.0002423,4]
[424157382,1780617042000,-10195.26301136,0.000242,2]
[424157383,1780617042000,-7295.47741862,0.000242,2]
[424157400,1780617042000,-211.43671141,0.00024332,4]
[424157476,1780617043000,-1450.0,0.00024745,2]
[424157482,1780617043000,-211.43671141,0.00024761,4]
[424157481,1780617043000,-1303.0,0.00024745,2]
[424157474,1780617043000,-1938.0,0.00024745,2]
[424157472,1780617043000,-2000.0,0.00024745,2]
[424157471,1780617043000,-150.0,0.00024742,4]
[424157475,1780617043000,-1450.0,0.00024745,2]
[424157466,1780617043000,-350.0,0.00024701,2]
[424157465,1780617043000,-350.0,0.00024701,2]
[424157464,1780617043000,-350.0,0.00024701,2]
[424157477,1780617043000,-1450.0,0.00024745,2]
[424157473,1780617043000,-2000.0,0.00024745,2]
[424157463,1780617043000,-350.0,0.00024701,2]
[424157487,1780617043000,-1050.0,0.00024774,2]
[424157483,1780617043000,-150.0,0.00024764,4]
[424157478,1780617043000,-1450.0,0.00024745,2]
[424157480,1780617043000,-1450.0,0.00024745,2]